bitfinex-derivatives/quotes_ETHF0:USTF0_20260223
["timestamp","ask_amount","ask_price","bid_price","bid_amount"]
[1771828689543,0.5970256,1879.4,1878.3,0.59429197]
[1771828689746,0.5970256,1880.0,1878.5,0.59429197]
[1771828690441,0.60249839,1880.0,1878.5,0.59966111]
[1771828691646,0.60249839,1880.0,1878.7,0.59429197]
[1771828693450,12.66427324,1881.3,1878.7,0.59429197]
[1771828693451,0.5970256,1880.2,1879.1,0.59429197]
[1771828694448,0.60095457,1880.2,1879.1,0.59429197]
[1771828694643,0.00392897,1880.2,1879.2,7.51827646]
[1771828694843,0.60095457,1880.2,1879.3,0.59429197]
[1771828700357,0.60095457,1880.2,1879.1,0.74195074]
[1771828703361,0.00392897,1880.2,1879.1,3.19294073]
[1771828703561,0.69631563,1880.2,1879.2,0.74195074]
[1771828704465,0.00392897,1880.2,1879.2,0.74195074]
[1771828705554,0.69631563,1880.2,1879.2,0.74195074]
[1771828719876,0.69238666,1880.0,1879.0,0.74195074]
[1771828720378,0.00392897,1880.2,1879.0,0.74195074]
[1771828720379,0.69238666,1879.8,1879.0,0.74195074]
[1771828722984,0.69238666,1879.8,1878.7,2.44522511]
[1771828722985,0.69238666,1879.8,1878.7,0.74195074]
[1771828723178,0.69238666,1879.6,1878.7,0.74195074]
[1771828723378,0.69238666,1879.6,1878.5,0.74731988]
[1771828723579,0.69238666,1879.4,1878.5,0.74731988]
[1771828723883,0.69238666,1879.4,1878.5,0.00536914]
[1771828724084,0.66148834,1879.3,1878.5,0.00536914]
[1771828724284,0.69238666,1879.2,1878.2,0.74195074]
[1771828725275,0.69238666,1879.2,1878.2,0.74804222]
[1771828730185,0.69238666,1879.2,1878.2,0.00609148]
[1771828730689,0.69238666,1879.2,1878.2,1.01741751]
[1771828734795,0.9764254,1879.3,1878.7,1.01132603]
[1771828734988,0.9764254,1880.1,1878.7,1.01132603]
[1771828735193,0.9764254,1879.9,1878.7,1.01132603]
[1771828744596,0.9764254,1880.1,1879.0,1.01132603]
[1771828744802,0.9764254,1880.1,1879.4,1.01132603]
[1771828747598,0.00392897,1880.2,1879.4,1.01132603]
[1771828747799,0.9764254,1880.5,1879.7,1.01132603]
[1771828748695,0.9827944,1880.5,1879.7,1.01531451]
[1771828749801,4.39580821,1881.9,1880.3,1.01132603]
[1771828750007,4.39580821,1881.9,1881.2,2.4580481]
[1771828750008,1.18570324,1881.9,1881.2,2.4580481]
[1771828750304,1.18570324,1881.9,1881.1,0.01282299]
[1771828750695,0.00482996,1881.9,1881.1,0.0165882]
[1771828750900,0.00482996,1881.9,1881.2,0.01282299]
[1771828751103,1.1761873,1881.9,1881.1,0.00376521]
[1771828751300,1.1761873,1881.9,1881.1,0.25377666]
[1771828751497,1.1761873,1881.9,1881.1,0.00376521]
[1771828753402,1.1761873,1881.9,1880.5,0.26752932]
[1771828753908,1.1761873,1881.9,1880.6,0.27129453]
[1771828754407,1.1761873,1881.9,1880.6,0.27810762]
[1771828754907,1.1761873,1881.9,1880.9,2.73307425]
[1771828755107,1.1761873,1881.9,1880.9,0.28784914]
[1771828755608,0.76621842,1882.1,1881.3,0.2227103]
[1771828756706,0.77234466,1882.1,1881.3,0.2227103]
[1771828757308,0.77234466,1882.1,1880.8,0.54485276]
[1771828757709,1.11023798,1882.0,1880.6,0.42821446]
[1771828758104,1.11023798,1882.0,1880.6,0.00681309]
[1771828759310,1.11023798,1882.0,1880.6,0.29400924]
[1771828759508,1.11023798,1881.7,1880.6,0.00681309]
[1771828759913,1.11023798,1881.7,1880.6,0.29090235]
[1771828760508,1.11023798,1881.7,1880.6,0.00681309]
[1771828760815,1.11023798,1881.7,1880.6,0.22962849]
[1771828761108,1.11023798,1881.7,1880.6,0.00681309]
[1771828761315,1.11023798,1881.7,1880.6,0.19191376]
[1771828768913,1.11023798,1881.7,1880.6,0.00681309]
[1771828769114,1.11023798,1881.4,1880.6,0.00681309]
[1771828770215,1.11023798,1881.4,1879.4,0.26609]
[1771828770421,1.11023798,1881.0,1879.4,0.26609]
[1771828770621,1.11023798,1881.0,1879.9,2.44522511]
[1771828771320,1.11023798,1881.0,1879.9,2.45057807]
[1771828771719,1.11023798,1881.0,1879.9,0.00535296]
[1771828789438,1.11023798,1881.0,1879.0,2.44293593]
[1771828789631,6.53933,1881.3,1878.9,0.26615]
[1771828789632,0.99454688,1880.8,1878.9,0.26615]
[1771828789934,0.99454688,1880.6,1878.9,0.26615]
[1771828790537,0.99904643,1880.6,1878.9,0.27095857]
[1771828791237,0.99555448,1880.4,1878.9,0.27095857]
[1771828794539,0.99555448,1880.4,1879.0,6.84786418]
[1771828795740,0.99555448,1880.4,1878.9,0.27095857]
[1771828796935,0.99555448,1880.4,1879.3,0.2661]
[1771828799132,0.99546263,1880.6,1879.6,0.26606]
[1771828799935,0.00449955,1880.6,1879.6,0.26606]
[1771828800841,0.99096308,1881.5,1880.0,9.25265593]
[1771828801043,8.30857865,1882.3,1880.0,9.25265593]
[1771828801044,0.61179135,1882.0,1880.8,2.44293593]
[1771828801236,0.61179135,1882.0,1880.9,0.64474921]
[1771828801945,0.61798854,1882.0,1880.9,0.64881094]
[1771828802139,0.61798854,1882.0,1880.9,0.00406173]
[1771828802341,0.61798854,1882.0,1880.5,0.64474921]
[1771828803435,0.61798854,1882.0,1880.5,0.64934864]
[1771828804437,0.63436076,1881.9,1880.5,0.00459943]
[1771828804636,0.61179135,1881.8,1880.5,0.00459943]
[1771828808049,0.61179135,1881.6,1880.5,0.00459943]
[1771828808240,0.61179135,1881.5,1880.2,0.64474921]
[1771828809250,0.61179135,1881.5,1880.2,0.64902032]
[1771828809446,0.61179135,1881.4,1880.2,0.64902032]
[1771828813557,0.61179135,1881.2,1880.2,0.00427111]
[1771828815351,0.61179135,1881.2,1880.2,0.64902032]
[1771828819560,0.60259572,1881.4,1880.2,0.64902032]
[1771828827674,0.6363639,1881.3,1880.2,0.64902032]
[1771828827875,0.60259572,1881.2,1880.2,0.64902032]
[1771828830978,0.60259572,1881.0,1880.2,0.00427111]
[1771828833176,0.60259572,1880.8,1879.8,0.58406113]
[1771828834079,0.60259572,1880.8,1879.8,0.58946457]
[1771828836681,0.60259572,1880.6,1879.8,0.58946457]
[1771828836881,0.60799297,1880.6,1879.8,0.58946457]
[1771828838575,0.60259572,1880.4,1879.6,0.58406113]
[1771828838876,0.60259572,1880.2,1879.5,0.58406113]
[1771828839485,0.60259572,1880.2,1879.5,0.58921926]
[1771828841487,0.60259572,1880.2,1879.5,0.00515813]
[1771828842688,0.60259572,1880.2,1879.5,0.58921926]
[1771828844590,0.60259572,1880.5,1879.5,0.58921926]
[1771828847591,0.60259572,1880.5,1879.5,0.60491807]
[1771828847792,0.58175374,1880.4,1879.5,0.60491807]
[1771828848989,0.58175374,1880.3,1879.5,0.60491807]
[1771828860095,0.58175374,1880.3,1879.9,0.59975994]
[1771828860398,2.39268059,1880.3,1879.9,0.59975994]
[1771828860698,0.58175374,1880.3,1879.9,0.59975994]
[1771828861500,0.58175374,1880.1,1879.5,0.60491807]
[1771828861696,0.58175374,1879.9,1879.5,0.60491807]
[1771828861896,0.58175374,1879.9,1879.5,0.00515813]
[1771828862203,0.58175374,1879.9,1879.4,0.59975994]
[1771828862695,0.58175374,1879.5,1879.1,0.59975994]
[1771828863294,0.58175374,1879.5,1879.1,0.60531316]
[1771828864700,0.58175374,1879.5,1879.1,0.00555322]
[1771828864994,0.58175374,1879.5,1878.9,0.59975994]
[1771828865200,0.58175374,1880.0,1879.3,0.59975994]
[1771828865797,0.58175374,1879.9,1879.3,0.60605436]
[1771828872910,0.58175374,1879.9,1879.3,0.00629442]
[1771828873204,0.58175374,1879.9,1879.4,0.59975994]
[1771828873405,0.58175374,1879.9,1879.3,0.60605436]
[1771828881613,0.5868496,1879.7,1878.3,0.58985932]
[1771828882509,0.5868496,1879.6,1878.4,0.58985932]
[1771828882712,0.5868496,1879.6,1878.4,0.59529026]
[1771828887921,0.5868496,1879.4,1878.4,0.59529026]
[1771828890725,0.5868496,1879.4,1878.4,0.00543094]
[1771828891228,0.5868496,1879.2,1878.4,0.59529026]
[1771828891428,0.59320558,1879.2,1878.4,0.59529026]
[1771828892027,0.59320558,1879.2,1878.4,0.00543094]
[1771828892925,0.59320558,1879.2,1878.4,0.59529026]
[1771828894623,0.59320558,1879.2,1878.4,0.00543094]
[1771828896128,0.59320558,1879.2,1878.4,0.59529026]
[1771828897230,0.5868496,1879.0,1878.4,0.59529026]
[1771828898026,1.81327095,1879.1,1878.0,0.58985932]
[1771828898027,0.5868496,1878.6,1878.0,0.58985932]
[1771828898929,0.5868496,1878.6,1878.2,0.58985932]
[1771828899131,0.5868496,1878.6,1878.2,0.59601418]
[1771828899931,0.5868496,1878.6,1878.2,0.00615486]
[1771828900130,0.5868496,1878.6,1878.2,0.59601418]
[1771828900630,0.5868496,1878.6,1878.2,0.00615486]
[1771828901332,0.5868496,1878.6,1878.2,0.59601418]
[1771828901931,0.5868496,1878.6,1878.2,0.00615486]
[1771828902132,0.5868496,1878.6,1878.2,0.59601418]
[1771828902632,0.5868496,1878.6,1878.2,0.00615486]
[1771828902827,0.5868496,1878.8,1878.2,0.59601418]
[1771828903228,0.5868496,1878.8,1878.2,0.00615486]
[1771828905032,0.5868496,1878.8,1878.0,0.13545495]
[1771828905835,0.5868496,1878.8,1877.9,0.13545495]
[1771828906032,0.5868496,1878.8,1877.9,0.1406144]
[1771828909339,0.5868496,1878.8,1877.9,0.00515945]
[1771828909741,0.6479511,1878.4,1877.4,0.28231344]
[1771828910741,0.6479511,1878.4,1877.4,0.28718226]
[1771828919249,0.6479511,1878.4,1877.7,0.30314767]
[1771828920551,0.6479511,1878.4,1877.9,0.30034068]
[1771828921048,0.6479511,1878.4,1877.8,1.81402084]
[1771828921450,0.6479511,1878.4,1877.9,0.30381715]
[1771828921852,0.6479511,1878.5,1877.9,0.30381715]
[1771828922952,0.6479511,1878.7,1878.2,0.30640595]
[1771828926958,0.6479511,1878.7,1878.0,0.29351045]
[1771828928857,0.6479511,1878.7,1877.8,0.28769863]
[1771828929756,0.6479511,1878.7,1877.5,0.28678555]
[1771828939970,0.6479511,1878.7,1877.9,0.26972214]
[1771828940868,0.6479511,1878.7,1877.6,0.26668349]
[1771828949375,0.6479511,1878.7,1877.9,0.25918777]
[1771828956386,0.6479511,1878.7,1877.5,0.24147084]
[1771828957688,0.6479511,1878.7,1878.0,0.23362821]
[1771828960086,0.6479511,1878.7,1877.7,0.2233079]
[1771828962085,0.59303886,1878.5,1877.4,0.20392661]
[1771828962293,0.59303886,1878.3,1877.4,0.20392661]
[1771828962487,0.59303886,1878.3,1877.5,0.19905779]
[1771828965187,10.92295775,1879.0,1877.8,0.19263833]
[1771828965392,0.59303886,1878.8,1877.9,2.42220468]
[1771828965594,0.63751933,1878.7,1877.9,2.42220468]
[1771828965789,0.63751933,1878.6,1877.9,2.42220468]
[1771828965991,0.59303886,1878.8,1877.9,2.42220468]
[1771828966190,0.63752534,1878.7,1877.9,2.42220468]
[1771828966391,0.59303886,1878.8,1878.1,1.8137925]
[1771828966694,0.63751157,1878.7,1878.1,1.8137925]
[1771828966892,0.59303886,1878.8,1878.0,0.60841218]
[1771828967093,0.6375131,1878.7,1878.0,0.60841218]
[1771828967293,0.59303886,1878.8,1878.0,0.60841218]
[1771828967493,0.63751492,1878.7,1878.0,0.60841218]
[1771828967791,0.59303886,1878.8,1878.0,0.60841218]
[1771828968093,0.63751707,1878.7,1878.0,0.60841218]
[1771828968288,0.59303886,1878.8,1878.0,0.60841218]
[1771828968593,0.63751963,1878.7,1878.0,0.60841218]
[1771828968787,0.59303886,1878.8,1878.0,0.60841218]
[1771828968988,0.63751957,1878.7,1878.0,0.60841218]
[1771828969189,0.59303886,1878.8,1878.0,0.60841218]
[1771828969484,0.63752235,1878.7,1878.0,0.60841218]
[1771828969691,0.59303886,1878.8,1878.0,0.60841218]
[1771828969888,0.59303886,1878.9,1878.5,2.43377935]
[1771828970094,0.60953562,1879.1,1878.5,2.43377935]
[1771828974794,0.60953562,1879.1,1878.7,2.43377935]
[1771828975096,0.60953562,1879.3,1879.0,0.61998685]
[1771828975297,0.60953562,1879.3,1878.9,0.61998685]
[1771828975898,0.61493299,1879.3,1878.9,0.62661499]
[1771828977496,0.61493299,1879.3,1878.9,0.00662814]
[1771828977694,0.61493299,1879.3,1878.8,0.61998685]
[1771828978197,0.61493299,1879.3,1878.6,0.61998685]
[1771828978590,0.61493299,1879.3,1878.6,0.62553474]
[1771828981500,0.61493299,1879.3,1878.7,0.61998685]
[1771828982507,0.61493299,1879.3,1878.6,0.62553474]
[1771828983099,0.61493299,1879.3,1878.6,0.00554789]
[1771828983396,0.61493299,1879.3,1878.7,0.61998685]
[1771828985601,0.61493299,1879.3,1878.6,0.62553474]
[1771828985808,0.60953562,1879.1,1878.6,0.62553474]
[1771828987306,2.42332812,1879.1,1878.6,0.00554789]
[1771828987806,0.60953562,1879.0,1878.6,0.00554789]
[1771828990317,0.60953562,1879.0,1878.6,0.62553474]
[1771828990714,0.60953562,1879.0,1878.6,0.00554789]
[1771828991013,0.60953562,1879.0,1878.6,0.62553474]
[1771828992014,0.55953562,1879.0,1878.6,0.62553474]
[1771828992416,0.55953562,1879.0,1878.6,0.00554789]
[1771828993407,0.55953562,1879.0,1878.6,0.62553474]
[1771828994217,0.55953562,1879.0,1878.6,0.00554789]
[1771828994417,0.55953562,1879.0,1878.6,0.62553474]
[1771828994616,0.55953562,1879.0,1878.6,0.00554789]
[1771828998613,0.59105682,1879.1,1878.8,2.42357192]
[1771828998814,0.19334164,1879.2,1878.6,2.42911981]
[1771828999017,0.19334164,1879.2,1878.7,0.60977942]
[1771829001516,0.20189538,1879.3,1878.8,2.42357192]
[1771829001721,0.20189538,1879.3,1878.9,0.60977942]
[1771829002520,0.00539737,1879.3,1878.9,0.60977942]
[1771829003322,0.19671039,1879.5,1879.1,0.60977942]
[1771829004219,0.00681896,1879.5,1879.1,0.60977942]
[1771829004421,0.19671039,1880.0,1879.3,0.60977942]
[1771829004621,0.82950809,1879.9,1879.3,0.60977942]
[1771829004825,0.19671039,1879.9,1879.3,0.60977942]
[1771829005431,0.20193141,1879.9,1879.3,0.60977942]
[1771829008419,1.8137925,1880.0,1879.4,0.60977942]
[1771829008615,0.01468092,1879.9,1879.4,0.60977942]
[1771829008825,0.01468092,1880.0,1879.4,2.42357192]
[1771829009025,0.266,1880.1,1879.5,0.60977942]
[1771829009220,0.28164882,1880.1,1879.5,0.60977942]
[1771829009414,0.01564882,1879.6,1879.3,0.60977942]
[1771829009722,0.01564882,1879.6,1878.9,0.60977942]
[1771829010025,0.01564882,1879.6,1879.0,0.60977942]
[1771829010224,0.01564882,1879.8,1879.2,0.60977942]
[1771829010924,0.26602,1879.9,1879.4,0.60977942]
[1771829011124,0.28402456,1879.9,1879.4,0.60977942]
[1771829012020,0.01800456,1879.8,1879.2,0.60977942]
[1771829012523,2.0798125,1879.9,1879.2,0.60977942]
[1771829012524,0.01800456,1879.6,1879.2,0.60977942]
[1771829014723,1.82408396,1879.5,1878.8,0.60977942]
[1771829014923,0.01029146,1879.5,1878.8,0.60977942]
[1771829016727,0.00792365,1879.6,1878.8,0.60977942]
[1771829018825,1.8137925,1879.7,1879.0,0.6182148]
[1771829019020,1.8137925,1879.4,1879.0,0.6182148]
[1771829019230,0.59105682,1879.3,1878.7,0.60977942]
[1771829021025,2.40484932,1879.2,1878.7,0.60977942]
[1771829021327,0.59105682,1879.1,1878.7,0.60977942]
[1771829022131,2.40484932,1879.2,1878.7,0.60977942]
[1771829022329,0.59105682,1879.3,1878.7,0.60977942]
[1771829027428,0.59105682,1879.2,1878.6,0.61532731]
[1771829029433,0.57842213,1879.1,1878.6,0.61532731]
[1771829033633,0.57842213,1879.2,1878.6,0.61532731]
[1771829037329,0.57842213,1879.2,1878.0,2.07899028]
[1771829037330,0.57842213,1878.6,1878.0,0.59899297]
[1771829037534,0.57842213,1878.8,1878.0,0.59899297]
[1771829038335,0.58499536,1878.8,1878.0,0.60332598]
[1771829045236,0.57842213,1878.7,1878.0,0.60332598]
[1771829047644,0.57842213,1878.5,1877.6,0.59899297]
[1771829048546,0.57842213,1878.5,1877.6,0.6036673]
[1771829049643,0.57842213,1878.3,1877.2,0.59899297]
[1771829049843,0.57842213,1877.9,1877.2,0.59899297]
[1771829050345,0.26629,1878.0,1877.2,0.59899297]
[1771829050842,0.84471213,1878.0,1877.2,0.60491972]
[1771829051250,0.57842213,1877.9,1877.2,0.60491972]
[1771829053952,0.80798632,1878.0,1877.2,0.60491972]
[1771829055554,0.54243012,1877.9,1877.2,0.60491972]
[1771829061763,0.55579473,1877.8,1877.2,0.60491972]
[1771829064661,0.55579473,1877.6,1876.8,0.60857487]
[1771829064866,0.55579473,1877.3,1876.2,0.60857487]
[1771829065068,0.55579473,1877.1,1876.2,0.60857487]
[1771829065765,0.56007224,1877.1,1876.2,0.61281793]
[1771829065963,0.55579473,1876.9,1876.2,0.61281793]
[1771829069567,0.26643,1877.0,1876.2,0.61281793]
[1771829069766,0.26643,1877.0,1876.4,0.60857487]
[1771829071966,0.55579473,1877.7,1876.7,0.60857487]
[1771829072165,0.26637,1877.5,1876.7,0.60857487]
[1771829072957,0.27017822,1877.5,1876.7,0.60857487]
[1771829073359,0.00380822,1877.5,1876.7,0.60857487]
[1771829074970,0.55579473,1877.9,1877.0,0.60857487]
[1771829075165,0.55579473,1877.9,1877.2,0.60857487]
[1771829076069,0.56265801,1877.9,1877.2,0.60857487]
[1771829089788,0.56265801,1877.9,1877.4,0.60967444]
[1771829102198,2.37788946,1877.9,1877.4,0.60967444]
[1771829102495,0.60943218,1877.8,1877.4,0.60967444]
[1771829102693,0.60943218,1877.8,1877.2,0.60967444]
[1771829106203,0.60943218,1877.6,1877.2,0.60967444]
[1771829106404,0.60943218,1877.6,1877.0,0.60967444]
[1771829124810,1.81523145,1877.5,1877.0,0.60967444]
[1771829124999,0.60018112,1877.4,1877.0,0.60967444]
[1771829125506,2.41541257,1877.2,1876.6,0.55725774]
[1771829125811,0.60018112,1877.1,1876.6,0.55725774]
[1771829126104,0.60018112,1877.3,1876.6,0.55725774]
[1771829126308,0.60018112,1877.3,1876.7,0.55725774]
[1771829128207,0.60018112,1877.4,1876.7,0.55725774]
[1771829128408,0.60018112,1877.5,1876.9,0.55725774]
[1771829129708,0.60018112,1877.7,1877.1,0.55725774]
[1771829130308,0.60018112,1877.7,1877.1,0.42537963]
[1771829130510,0.00686328,1877.9,1877.6,0.42537963]
[1771829130811,0.00686328,1877.9,1877.6,0.00458698]
[1771829130812,0.6070444,1877.9,1877.6,0.00458698]
[1771829132516,0.6070444,1877.9,1877.1,2.23634664]
[1771829132816,0.6070444,1877.9,1877.2,0.42111519]
[1771829133512,0.6070444,1877.9,1877.2,0.42561]
[1771829134812,0.00686328,1877.9,1877.4,0.42057343]
[1771829135311,0.6070444,1877.9,1877.4,0.42057343]
[1771829140916,0.60018112,1878.3,1877.8,0.41121951]
[1771829141915,0.60518519,1878.3,1877.9,0.41168354]
[1771829142113,0.60018112,1878.6,1877.9,0.41168354]
[1771829143215,0.60542337,1878.6,1877.9,0.41168354]
[1771829150737,0.00524225,1878.6,1877.9,2.22543179]
[1771829150930,0.00524225,1878.6,1878.0,0.60558187]
[1771829151930,0.60575905,1878.6,1878.0,0.60558187]
[1771829159343,0.00524225,1878.6,1878.0,0.60558187]
[1771829159735,0.6005168,1879.1,1878.0,0.60558187]
[1771829159936,0.6005168,1879.3,1878.2,0.60558187]
[1771829160539,0.6005168,1879.3,1878.5,0.60558187]
[1771829160938,0.60578875,1879.3,1878.5,0.60558187]
[1771829163649,0.00527195,1879.3,1878.5,0.60558187]
[1771829164546,0.60578875,1879.3,1878.5,0.60558187]
[1771829167347,0.60578875,1879.3,1878.1,0.57964141]
[1771829167545,0.60578875,1879.3,1878.2,0.57964141]
[1771829169043,0.6005168,1879.2,1878.2,0.57964141]
[1771829172246,0.6005168,1879.2,1878.5,0.58780873]
[1771829172847,0.6005168,1879.1,1878.1,0.58780873]
[1771829173251,0.6005168,1878.8,1878.1,0.58780873]
[1771829175750,0.6005168,1878.8,1877.8,0.59493726]
[1771829181963,0.6005168,1878.8,1878.0,0.59546617]
[1771829183164,0.55301806,1879.2,1878.3,0.59494734]
[1771829183563,0.55301806,1879.2,1877.9,1.81374825]
[1771829185060,0.55301806,1879.2,1878.0,0.00177832]
[1771829185564,0.55301806,1879.2,1878.2,0.00177832]
[1771829190970,0.61071227,1879.1,1878.1,0.00158818]
[1771829193371,0.60734548,1878.8,1877.6,0.0075185]
[1771829195770,0.60734548,1878.8,1877.7,1.81374825]
[1771829195971,0.60734548,1878.8,1877.8,0.05353893]
[1771829207877,0.60734548,1878.8,1878.0,0.33939795]
[1771829209284,0.60734548,1878.8,1878.4,0.37266413]
[1771829210174,0.60734548,1878.8,1878.3,2.20466761]
[1771829210378,0.60734548,1878.8,1878.4,0.39168233]
[1771829210977,1.81298528,1879.2,1878.4,0.39168233]
[1771829211182,0.00527195,1879.3,1878.6,0.36971669]
[1771829211183,0.75266581,1878.9,1878.6,0.36971669]
[1771829211485,0.75266581,1879.2,1878.7,2.20063408]
[1771829211685,0.75266581,1879.2,1878.8,0.3876488]
[1771829212481,0.75793776,1879.3,1879.0,0.40587627]
[1771829212681,0.75266581,1879.7,1879.0,0.40587627]
[1771829213085,0.75266581,1879.7,1878.9,2.5188185]
[1771829213384,0.75266581,1879.7,1878.9,0.70583322]
[1771829213581,0.75670131,1879.7,1879.1,0.70583322]
[1771829213781,0.75266581,1880.0,1879.2,1.81298528]
[1771829213980,0.75266581,1879.8,1879.1,0.70583322]
[1771829214683,0.75726891,1879.8,1879.1,0.70583322]
[1771829216387,0.75726891,1879.8,1879.2,2.5188185]
[1771829216789,0.75726891,1879.8,1879.2,0.70583322]
[1771829216989,0.75266581,1879.6,1879.0,0.70583322]
[1771829217584,0.75266581,1879.6,1878.7,0.70583322]
[1771829217986,0.75266581,1879.6,1879.1,0.70583322]
[1771829219287,0.75266581,1879.6,1879.0,0.70583322]
[1771829219589,0.75266581,1879.6,1878.9,0.70583322]
[1771829220890,0.75266581,1879.2,1878.6,0.00489521]
[1771829221088,0.75266581,1879.2,1878.6,0.71072843]
[1771829221690,0.75266581,1879.6,1879.1,2.5188185]
[1771829221887,0.75266581,1879.6,1879.1,1.81298528]
[1771829222087,0.75266581,1879.6,1879.1,0.70583322]
[1771829222492,0.75266581,1879.6,1879.1,2.5188185]
[1771829222682,0.75266581,1879.6,1879.1,0.70583322]
[1771829224691,0.75266581,1879.6,1879.2,0.70583322]
[1771829225789,0.75266581,1879.6,1878.9,0.70583322]
[1771829229297,0.75266581,1879.6,1878.7,0.70583322]
[1771829231896,0.75266581,1879.4,1878.6,0.71072843]
[1771829232493,0.75266581,1879.4,1878.6,0.00489521]
[1771829235798,0.75266581,1879.4,1878.6,0.71072843]
[1771829237390,0.75266581,1879.4,1878.6,0.00489521]
[1771829237798,0.75266581,1879.4,1878.6,0.98455298]
[1771829240094,1.02671395,1879.8,1879.1,0.97965777]
[1771829246907,1.02671395,1879.8,1878.8,0.97965777]
[1771829248913,0.0046031,1879.8,1879.1,0.97965777]
[1771829249711,1.02211085,1880.2,1879.1,0.97965777]
[1771829250711,1.02738868,1880.2,1879.4,0.97965777]
[1771829251315,0.00527783,1880.2,1879.4,0.97965777]
[1771829252018,1.02211085,1880.9,1880.1,0.97965777]
[1771829252814,1.02865381,1880.9,1880.1,0.98602568]
[1771829253817,0.00654296,1880.9,1880.3,0.97965777]
[1771829254017,1.02211085,1881.3,1880.3,0.97965777]
[1771829254412,1.02211085,1881.3,1880.2,0.97965777]
[1771829254608,1.02211085,1880.9,1880.2,0.97965777]
[1771829255011,1.02804009,1880.9,1880.2,0.97965777]
[1771829255215,1.02211085,1880.6,1880.2,0.97965777]
[1771829255710,1.02211085,1880.8,1880.2,0.97965777]
[1771829255910,0.00592924,1880.9,1880.2,0.97965777]
[1771829256717,1.02211085,1881.1,1880.2,0.97965777]
[1771829257716,1.02751495,1881.1,1880.2,0.97965777]
[1771829257921,0.0054041,1881.1,1880.5,0.97965777]
[1771829258415,0.09252649,1882.2,1880.4,2.4456678]
[1771829258416,1.02211085,1881.6,1880.8,0.97965777]
[1771829258809,1.02211085,1881.6,1880.6,0.97965777]
[1771829259009,1.02211085,1881.4,1880.6,0.97965777]
[1771829259418,1.02662925,1881.4,1880.6,0.97965777]
[1771829259619,1.02211085,1881.2,1880.6,0.97965777]
[1771829259818,1.02211085,1881.2,1880.3,0.97965777]
[1771829260014,1.02671395,1881.2,1880.3,0.97965777]
[1771829260213,1.02211085,1881.2,1880.3,0.97965777]
[1771829260621,1.02211085,1881.0,1880.3,0.97965777]
[1771829261018,1.02671395,1881.0,1880.3,0.97965777]
[1771829261319,1.02211085,1881.0,1880.3,0.97965777]
[1771829262118,1.02662925,1881.4,1880.3,0.97965777]
[1771829262317,1.03123235,1881.4,1880.3,0.97965777]
[1771829262519,1.02662925,1881.4,1880.3,0.97965777]
[1771829262711,1.02211085,1881.1,1880.3,0.97965777]
[1771829263320,1.02671395,1881.1,1880.3,0.97965777]
[1771829264814,1.02662925,1881.4,1880.3,0.97965777]
[1771829265221,1.03123235,1881.4,1880.3,0.97965777]
[1771829265422,1.02662925,1881.4,1880.3,0.97965777]
[1771829265817,1.02211085,1881.2,1880.3,0.97965777]
[1771829267022,1.02671395,1881.2,1880.3,0.97965777]
[1771829268023,1.19760783,1881.0,1880.3,0.97965777]
[1771829268518,1.20221093,1881.0,1880.3,0.97965777]
[1771829268717,1.19760783,1881.0,1880.3,0.97965777]
[1771829269013,1.20221093,1880.9,1880.3,0.97965777]
[1771829269218,1.19760783,1880.9,1880.3,0.97965777]
[1771829269718,1.20221093,1880.9,1880.3,0.97965777]
[1771829270423,1.19760783,1880.7,1880.3,0.97965777]
[1771829270820,1.20221093,1880.7,1880.3,0.97965777]
[1771829271319,0.0046031,1880.7,1880.3,0.97965777]
[1771829272023,0.0046031,1880.6,1880.3,0.97965777]
[1771829272323,1.19760783,1880.8,1880.3,0.97965777]
[1771829272623,1.20221093,1880.7,1880.3,0.97965777]
[1771829272919,1.19760783,1880.8,1880.3,0.97965777]
[1771829273319,1.20212623,1881.4,1880.4,1.20188871]
[1771829274123,1.19760783,1881.1,1880.4,1.20188871]
[1771829274919,1.19760783,1881.3,1880.4,1.20188871]
[1771829275120,0.0046031,1881.1,1880.4,1.20188871]
[1771829275321,1.19760783,1881.2,1880.4,1.20188871]
[1771829275630,0.0046031,1881.1,1880.4,1.20188871]
[1771829275925,1.20212623,1881.4,1880.4,1.20188871]
[1771829276126,0.0046031,1881.3,1880.4,1.20188871]
[1771829277826,1.20212623,1881.4,1880.4,1.20188871]
[1771829277827,0.0046031,1881.2,1880.4,1.20188871]
[1771829278027,1.20212623,1881.4,1880.4,1.20188871]
[1771829278227,0.0046031,1881.3,1880.4,1.20188871]
[1771829278424,1.20212623,1881.4,1880.4,1.20188871]
[1771829278629,1.20672933,1881.4,1880.4,1.20188871]
[1771829278923,1.20212623,1881.4,1880.4,1.20188871]
[1771829279121,0.0046031,1881.1,1880.4,1.20188871]
[1771829279326,1.20212623,1881.4,1880.4,1.20188871]
[1771829279327,1.19760783,1881.0,1880.4,1.20188871]
[1771829279525,1.19760783,1881.3,1880.4,1.20188871]
[1771829279722,1.20221093,1881.1,1880.4,1.20188871]
[1771829280228,1.19760783,1881.0,1880.4,1.20188871]
[1771829280823,1.19760783,1880.9,1880.4,1.20188871]
[1771829281231,0.0046031,1880.6,1880.4,1.20188871]
[1771829281426,0.0045184,1881.4,1880.4,0.44395107]
[1771829281632,1.19760783,1881.2,1880.4,0.44395107]
[1771829281931,1.20221093,1880.9,1880.4,0.44395107]
[1771829282432,1.19760783,1880.9,1880.4,0.44395107]
[1771829282631,1.19760783,1881.3,1880.4,0.44395107]
[1771829282830,0.0045184,1881.4,1880.4,0.44395107]
[1771829282831,1.19760783,1881.2,1880.4,0.44395107]
[1771829283334,0.0046031,1881.0,1880.4,0.44395107]
[1771829283530,1.19760783,1881.1,1880.4,0.44395107]
[1771829283725,0.0046031,1880.9,1880.4,0.44395107]
[1771829284229,0.0046031,1880.8,1880.4,0.44395107]
[1771829284429,1.19760783,1881.1,1880.4,0.44395107]
[1771829285230,0.0046031,1881.0,1880.4,0.44395107]
[1771829285430,1.19760783,1881.1,1880.4,0.44395107]
[1771829285626,0.0045184,1881.4,1880.4,0.44395107]
[1771829285930,1.19760783,1881.3,1880.4,0.44395107]
[1771829286933,1.20212623,1881.4,1880.6,1.20188871]
[1771829287531,1.20212623,1881.4,1880.5,1.20188871]
[1771829288130,1.19760783,1881.2,1880.5,1.20188871]
[1771829288830,1.19760783,1881.2,1880.2,1.20188871]
[1771829289338,1.19760783,1881.0,1880.2,1.20188871]
[1771829293635,1.19760783,1881.0,1880.1,0.00636791]
[1771829293934,1.19760783,1880.8,1880.1,1.20825662]
[1771829295742,1.19760783,1880.8,1880.1,0.00636791]
[1771829297239,0.7607436,1880.8,1880.1,0.00636791]
[1771829297638,0.7607436,1880.8,1880.1,1.35275657]
[1771829299541,0.7607436,1880.8,1880.1,0.00636791]
[1771829300040,0.7607436,1880.8,1880.1,1.35275657]
[1771829301946,1.26719534,1881.3,1880.3,1.34638866]
[1771829335176,1.41729528,1881.1,1880.3,1.34638866]
[1771829335371,1.41729528,1880.8,1880.1,0.00636791]
[1771829335573,1.41729528,1880.8,1880.1,1.34727234]
[1771829336478,1.41729528,1880.8,1880.2,1.34090443]
[1771829338877,1.41729528,1881.2,1880.4,1.34090443]
[1771829340481,1.42181368,1881.4,1880.4,1.34090443]
[1771829346177,1.41729528,1881.2,1880.4,1.34090443]